[Event "Titled Tuesday Blitz December 27 Late 2022"]
[White "Bochnicka, Vladimir"]
[Black "Can, Melih Kaan"]
[WhiteFideId "14943450"]
[BlackFideId "6317383"]
[WhiteElo "2327"]
[BlackElo "2069"]
[Result "1-0"]
[Round "06"]
[TimeControl "180+2"]
[Date "2022.12.27"]
[WhiteClock "0:00:28"]
[BlackClock "0:00:19"]

1. e4 {[%clk 0:03:00]}  e5 {[%clk 0:02:59]} 2. Nf3 {[%clk 0:03:01]}  Nc6 {[%clk 0:03:00]} 3. Bc4 {[%clk 0:03:01]}  Nf6 {[%clk 0:03:00]} 4. d3 {[%clk 0:03:02]}  Bc5 {[%clk 0:03:00]} 5. c3 {[%clk 0:03:02]}  d6 {[%clk 0:03:00]} 6. Nbd2 {[%clk 0:03:03]}  a6 {[%clk 0:03:00]} 7. Bb3 {[%clk 0:03:03]}  Ba7 {[%clk 0:03:00]} 8. Nf1 {[%clk 0:03:03]}  Ng4 {[%clk 0:02:51]} 9. Ne3 {[%clk 0:03:01]}  O-O {[%clk 0:02:47]} 10. Nxg4 {[%clk 0:02:56]}  Bxg4 {[%clk 0:02:47]} 11. h3 {[%clk 0:02:57]}  Bh5 {[%clk 0:02:47]} 12. O-O {[%clk 0:02:57]}  Kh8 {[%clk 0:02:43]} 13. g4 {[%clk 0:02:52]}  Bg6 {[%clk 0:02:42]} 14. Bg5 {[%clk 0:02:51]}  Qd7 {[%clk 0:02:38]} 15. Nh4 {[%clk 0:02:40]}  Nd8 {[%clk 0:02:33]} 16. Kh2 {[%clk 0:02:32]}  Ne6 {[%clk 0:02:33]} 17. Be3 {[%clk 0:02:29]}  f6 {[%clk 0:02:23]} 18. Nxg6+ {[%clk 0:02:19]}  hxg6 {[%clk 0:02:23]} 19. Qf3 {[%clk 0:02:08]}  g5 {[%clk 0:02:19]} 20. Kg2 {[%clk 0:01:56]}  Nf4+ {[%clk 0:02:16]} 21. Bxf4 {[%clk 0:01:56]}  gxf4 {[%clk 0:02:13]} 22. g5 {[%clk 0:01:46]}  g6 {[%clk 0:02:10]} 23. h4 {[%clk 0:01:41]}  Kg7 {[%clk 0:01:57]} 24. Rh1 {[%clk 0:01:36]}  Rh8 {[%clk 0:01:56]} 25. gxf6+ {[%clk 0:01:17]}  Kxf6 {[%clk 0:01:56]} 26. d4 {[%clk 0:01:07]}  Rag8 {[%clk 0:01:46]} 27. dxe5+ {[%clk 0:01:03]}  dxe5 {[%clk 0:01:47]} 28. Rad1 {[%clk 0:01:00]}  Qh7 {[%clk 0:01:39]} 29. Qg4 {[%clk 0:00:44]}  Qh5 {[%clk 0:00:56]} 30. Qxh5 {[%clk 0:00:44]}  gxh5+ {[%clk 0:00:57]} 31. Bxg8 {[%clk 0:00:44]}  Rxg8+ {[%clk 0:00:57]} 32. Kf3 {[%clk 0:00:44]}  Bc5 {[%clk 0:00:43]} 33. Rhg1 {[%clk 0:00:43]}  Rh8 {[%clk 0:00:41]} 34. Rg5 {[%clk 0:00:42]}  Bd6 {[%clk 0:00:41]} 35. Rf5+ {[%clk 0:00:41]}  Ke6 {[%clk 0:00:40]} 36. Rg1 {[%clk 0:00:41]}  Be7 {[%clk 0:00:31]} 37. Rg6+ {[%clk 0:00:41]}  Kd7 {[%clk 0:00:32]} 38. Rg7 {[%clk 0:00:40]}  Kd6 {[%clk 0:00:28]} 39. Rg6+ {[%clk 0:00:39]}  Kd7 {[%clk 0:00:28]} 40. Rxe5 {[%clk 0:00:39]}  Bxh4 {[%clk 0:00:28]} 41. Rg7+ {[%clk 0:00:34]}  Kd6 {[%clk 0:00:23]} 42. Rd5+ {[%clk 0:00:34]}  Kc6 {[%clk 0:00:22]} 43. Rg6+ {[%clk 0:00:27]}  Bf6 {[%clk 0:00:19]} 44. Rxf6# {[%clk 0:00:28]} 1-0


[Site "https://www.chess.com"]

[Event "Titled Tuesday Blitz December 27 Late 2022"]
[White "Bortnyk, Olexandr"]
[Black "Talibov, Shiroghlan"]
[WhiteFideId "14120828"]
[BlackFideId "13429078"]
[WhiteElo "2605"]
[BlackElo "2359"]
[Result "1-0"]
[Round "06"]
[TimeControl "180+2"]
[Date "2022.12.27"]
[WhiteClock "0:00:07"]
[BlackClock "0:00:02"]

1. e4 {[%clk 0:03:00]}  e6 {[%clk 0:03:00]} 2. d4 {[%clk 0:03:00]}  d5 {[%clk 0:03:00]} 3. Nc3 {[%clk 0:03:00]}  Nf6 {[%clk 0:03:01]} 4. Bg5 {[%clk 0:03:00]}  dxe4 {[%clk 0:02:48]} 5. Nxe4 {[%clk 0:03:01]}  Be7 {[%clk 0:02:49]} 6. Bxf6 {[%clk 0:03:02]}  gxf6 {[%clk 0:02:49]} 7. Nf3 {[%clk 0:03:02]}  f5 {[%clk 0:02:41]} 8. Nc3 {[%clk 0:03:03]}  a6 {[%clk 0:02:39]} 9. Qd3 {[%clk 0:03:02]}  Qd6 {[%clk 0:02:35]} 10. O-O-O {[%clk 0:03:02]}  b5 {[%clk 0:02:36]} 11. d5 {[%clk 0:03:01]}  e5 {[%clk 0:02:32]} 12. Qe3 {[%clk 0:03:00]}  Nd7 {[%clk 0:02:26]} 13. Bxb5 {[%clk 0:02:41]}  e4 {[%clk 0:02:01]} 14. Bc6 {[%clk 0:02:31]}  Rb8 {[%clk 0:01:56]} 15. Nd4 {[%clk 0:02:32]}  Qg6 {[%clk 0:01:55]} 16. Kb1 {[%clk 0:02:15]}  O-O {[%clk 0:01:54]} 17. f3 {[%clk 0:02:05]}  Ne5 {[%clk 0:01:51]} 18. Qe2 {[%clk 0:01:57]}  Bb4 {[%clk 0:01:03]} 19. Na4 {[%clk 0:01:57]}  Rd8 {[%clk 0:00:57]} 20. h4 {[%clk 0:01:56]}  Kh8 {[%clk 0:00:47]} 21. h5 {[%clk 0:01:56]}  Qf6 {[%clk 0:00:46]} 22. fxe4 {[%clk 0:01:54]}  f4 {[%clk 0:00:43]} 23. Rdf1 {[%clk 0:01:46]}  Bd6 {[%clk 0:00:36]} 24. Qd2 {[%clk 0:01:08]}  Nc4 {[%clk 0:00:33]} 25. Qd3 {[%clk 0:00:58]}  Ne5 {[%clk 0:00:25]} 26. Qc3 {[%clk 0:00:52]}  Rg8 {[%clk 0:00:26]} 27. Ne2 {[%clk 0:00:47]}  Qe7 {[%clk 0:00:19]} 28. Nxf4 {[%clk 0:00:44]}  Rg4 {[%clk 0:00:17]} 29. h6 {[%clk 0:00:29]}  Rb4 {[%clk 0:00:16]} 30. Nd3 {[%clk 0:00:28]}  Rbxe4 {[%clk 0:00:15]} 31. b3 {[%clk 0:00:23]}  f6 {[%clk 0:00:13]} 32. Nab2 {[%clk 0:00:22]}  Re2 {[%clk 0:00:09]} 33. Rf2 {[%clk 0:00:15]}  Rxf2 {[%clk 0:00:08]} 34. Nxf2 {[%clk 0:00:16]}  Rxg2 {[%clk 0:00:09]} 35. Ne4 {[%clk 0:00:16]}  Bf5 {[%clk 0:00:10]} 36. Nxd6 {[%clk 0:00:14]}  cxd6 {[%clk 0:00:10]} 37. Rc1 {[%clk 0:00:14]}  Qf8 {[%clk 0:00:06]} 38. Qe3 {[%clk 0:00:10]}  Rg6 {[%clk 0:00:05]} 39. Rf1 {[%clk 0:00:06]}  Qxh6 {[%clk 0:00:03]} 40. Qxh6 {[%clk 0:00:05]}  Rxh6 {[%clk 0:00:04]} 41. Bb7 {[%clk 0:00:03]}  Be4 {[%clk 0:00:03]} 42. Bxa6 {[%clk 0:00:03]}  Rh2 {[%clk 0:00:02]} 43. Bd3 {[%clk 0:00:03]}  f5 {[%clk 0:00:01]} 44. Bxe4 {[%clk 0:00:03]}  fxe4 {[%clk 0:00:02]} 45. a4 {[%clk 0:00:04]}  Nf3 {[%clk 0:00:03]} 46. Nc4 {[%clk 0:00:04]}  h5 {[%clk 0:00:01]} 47. a5 {[%clk 0:00:04]}  Rg2 {[%clk 0:00:02]} 48. a6 {[%clk 0:00:04]}  Rg8 {[%clk 0:00:03]} 49. Rh1 {[%clk 0:00:05]}  h4 {[%clk 0:00:02]} 50. Nxd6 {[%clk 0:00:05]}  Ra8 {[%clk 0:00:03]} 51. Nxe4 {[%clk 0:00:05]}  Rxa6 {[%clk 0:00:02]} 52. c4 {[%clk 0:00:05]}  Rg6 {[%clk 0:00:02]} 53. Kc2 {[%clk 0:00:05]}  Kg7 {[%clk 0:00:01]} 54. d6 {[%clk 0:00:05]}  Rg4 {[%clk 0:00:02]} 55. d7 {[%clk 0:00:05]}  Nd4+ {[%clk 0:00:02]} 56. Kd3 {[%clk 0:00:04]}  Ne6 {[%clk 0:00:03]} 57. c5 {[%clk 0:00:03]}  Kf7 {[%clk 0:00:02]} 58. c6 {[%clk 0:00:04]}  Ke7 {[%clk 0:00:02]} 59. b4 {[%clk 0:00:05]}  Rf4 {[%clk 0:00:02]} 60. b5 {[%clk 0:00:05]}  Rf3+ {[%clk 0:00:02]} 61. Kc4 {[%clk 0:00:05]}  Rf4 {[%clk 0:00:03]} 62. Kd3 {[%clk 0:00:05]}  Rf3+ {[%clk 0:00:03]} 63. Ke2 {[%clk 0:00:06]}  Nd4+ {[%clk 0:00:03]} 64. Kd2 {[%clk 0:00:06]}  Nxb5 {[%clk 0:00:04]} 65. Rxh4 {[%clk 0:00:06]}  Rf8 {[%clk 0:00:02]} 66. Rh7+ {[%clk 0:00:06]}  Kd8 {[%clk 0:00:03]} 67. Nc5 {[%clk 0:00:06]}  Nd4 {[%clk 0:00:02]} 68. Nb7+ {[%clk 0:00:06]}  Kc7 {[%clk 0:00:02]} 69. d8=Q+ {[%clk 0:00:07]}  Kxc6 {[%clk 0:00:02]} 70. Qd6+ {[%clk 0:00:07]} 1-0


[Site "https://www.chess.com"]

[Event "Titled Tuesday Blitz December 27 Late 2022"]
[White "Curtis, John"]
[Black "Feng, Eric"]
[WhiteFideId "3200256"]
[BlackFideId "30952590"]
[WhiteElo "2292"]
[BlackElo "1951"]
[Result "1-0"]
[Round "06"]
[TimeControl "180+2"]
[Date "2022.12.27"]
[WhiteClock "0:00:07"]
[BlackClock "0:00:23"]

1. e4 {[%clk 0:02:58]}  c6 {[%clk 0:03:00]} 2. Nc3 {[%clk 0:02:58]}  d5 {[%clk 0:03:00]} 3. d4 {[%clk 0:02:57]}  dxe4 {[%clk 0:03:01]} 4. Nxe4 {[%clk 0:02:56]}  Bf5 {[%clk 0:03:01]} 5. Ng3 {[%clk 0:02:56]}  Bg6 {[%clk 0:03:02]} 6. Nf3 {[%clk 0:02:52]}  Nd7 {[%clk 0:03:02]} 7. Bd3 {[%clk 0:02:51]}  Bxd3 {[%clk 0:03:02]} 8. Qxd3 {[%clk 0:02:51]}  e6 {[%clk 0:03:03]} 9. Bd2 {[%clk 0:02:50]}  Ngf6 {[%clk 0:03:03]} 10. O-O-O {[%clk 0:02:50]}  a5 {[%clk 0:03:03]} 11. Kb1 {[%clk 0:02:50]}  a4 {[%clk 0:03:03]} 12. h3 {[%clk 0:02:39]}  a3 {[%clk 0:03:02]} 13. b3 {[%clk 0:02:38]}  Be7 {[%clk 0:02:59]} 14. c4 {[%clk 0:02:32]}  Rc8 {[%clk 0:02:54]} 15. b4 {[%clk 0:02:13]}  b6 {[%clk 0:02:48]} 16. Qxa3 {[%clk 0:02:11]}  Ra8 {[%clk 0:02:43]} 17. Qb3 {[%clk 0:02:06]}  O-O {[%clk 0:02:43]} 18. Bc1 {[%clk 0:02:05]}  Qc7 {[%clk 0:02:42]} 19. Rhe1 {[%clk 0:02:02]}  b5 {[%clk 0:02:42]} 20. c5 {[%clk 0:02:01]}  Ra4 {[%clk 0:02:41]} 21. a3 {[%clk 0:02:00]}  Rfa8 {[%clk 0:02:41]} 22. Ne4 {[%clk 0:01:43]}  Nxe4 {[%clk 0:02:40]} 23. Rxe4 {[%clk 0:01:42]}  Nf6 {[%clk 0:02:40]} 24. Re2 {[%clk 0:01:36]}  Nd5 {[%clk 0:02:39]} 25. g3 {[%clk 0:01:34]}  Bf6 {[%clk 0:02:24]} 26. Rd3 {[%clk 0:01:34]}  Qa7 {[%clk 0:02:08]} 27. Bb2 {[%clk 0:01:31]}  Qe7 {[%clk 0:01:56]} 28. Nd2 {[%clk 0:01:25]}  g6 {[%clk 0:01:54]} 29. Ne4 {[%clk 0:01:25]}  Bg7 {[%clk 0:01:54]} 30. Nc3 {[%clk 0:01:25]}  Nxc3+ {[%clk 0:01:51]} 31. Qxc3 {[%clk 0:01:25]}  Rd8 {[%clk 0:01:46]} 32. Rdd2 {[%clk 0:01:08]}  Rd5 {[%clk 0:01:45]} 33. Qf3 {[%clk 0:01:04]}  Qd7 {[%clk 0:01:42]} 34. h4 {[%clk 0:01:04]}  Bxd4 {[%clk 0:01:37]} 35. Bc1 {[%clk 0:00:48]}  Ra8 {[%clk 0:01:11]} 36. Rd3 {[%clk 0:00:45]}  Bg7 {[%clk 0:01:07]} 37. Rxd5 {[%clk 0:00:40]}  exd5 {[%clk 0:01:08]} 38. Qe3 {[%clk 0:00:37]}  Qf5+ {[%clk 0:01:06]} 39. Ka2 {[%clk 0:00:34]}  h5 {[%clk 0:00:57]} 40. Bb2 {[%clk 0:00:27]}  Bxb2 {[%clk 0:00:48]} 41. Kxb2 {[%clk 0:00:27]}  Qf6+ {[%clk 0:00:48]} 42. Qe5 {[%clk 0:00:26]}  Qf3 {[%clk 0:00:45]} 43. Qe3 {[%clk 0:00:26]}  Qf5 {[%clk 0:00:45]} 44. Qd4 {[%clk 0:00:16]}  Qf3 {[%clk 0:00:20]} 45. Qe3 {[%clk 0:00:15]}  Qg4 {[%clk 0:00:20]} 46. Qd3 {[%clk 0:00:09]}  Kg7 {[%clk 0:00:18]} 47. f4 {[%clk 0:00:09]}  Kh7 {[%clk 0:00:14]} 48. Re3 {[%clk 0:00:08]}  Qh3 {[%clk 0:00:14]} 49. Qe2 {[%clk 0:00:06]}  Qf5 {[%clk 0:00:12]} 50. Re5 {[%clk 0:00:05]}  Qf6 {[%clk 0:00:13]} 51. Qe3 {[%clk 0:00:04]}  Re8 {[%clk 0:00:12]} 52. Kc2 {[%clk 0:00:03]}  Rxe5 {[%clk 0:00:12]} 53. Qxe5 {[%clk 0:00:02]}  Qxe5 {[%clk 0:00:10]} 54. fxe5 {[%clk 0:00:03]}  Kg8 {[%clk 0:00:11]} 55. a4 {[%clk 0:00:03]}  Kf8 {[%clk 0:00:12]} 56. axb5 {[%clk 0:00:03]}  cxb5 {[%clk 0:00:12]} 57. Kd3 {[%clk 0:00:04]}  Ke7 {[%clk 0:00:12]} 58. Ke3 {[%clk 0:00:04]}  Kd7 {[%clk 0:00:11]} 59. Kd4 {[%clk 0:00:01]}  Ke6 {[%clk 0:00:11]} 60. c6 {[%clk 0:00:02]}  f5 {[%clk 0:00:10]} 61. exf6 {[%clk 0:00:01]}  Kd6 {[%clk 0:00:11]} 62. f7 {[%clk 0:00:01]}  Kxc6 {[%clk 0:00:11]} 63. f8=Q {[%clk 0:00:01]}  Kd7 {[%clk 0:00:12]} 64. Qc5 {[%clk 0:00:02]}  Ke6 {[%clk 0:00:13]} 65. Qxb5 {[%clk 0:00:02]}  Kf6 {[%clk 0:00:14]} 66. Qxd5 {[%clk 0:00:03]}  Kg7 {[%clk 0:00:15]} 67. Qg5 {[%clk 0:00:03]}  Kh7 {[%clk 0:00:15]} 68. g4 {[%clk 0:00:04]}  Kg7 {[%clk 0:00:16]} 69. gxh5 {[%clk 0:00:03]}  Kf7 {[%clk 0:00:17]} 70. Qxg6+ {[%clk 0:00:04]}  Kf8 {[%clk 0:00:17]} 71. Kd5 {[%clk 0:00:04]}  Ke7 {[%clk 0:00:18]} 72. Ke5 {[%clk 0:00:05]}  Kd8 {[%clk 0:00:19]} 73. b5 {[%clk 0:00:06]}  Kc7 {[%clk 0:00:20]} 74. Qc6+ {[%clk 0:00:05]}  Kb8 {[%clk 0:00:20]} 75. Qd7 {[%clk 0:00:05]}  Ka8 {[%clk 0:00:21]} 76. b6 {[%clk 0:00:06]}  Kb8 {[%clk 0:00:22]} 77. Qc7+ {[%clk 0:00:06]}  Ka8 {[%clk 0:00:23]} 78. Qa7# {[%clk 0:00:07]} 1-0


[Site "https://www.chess.com"]

[Event "Titled Tuesday Blitz December 27 Late 2022"]
[White "Deac, Bogdan-Daniel"]
[Black "Vaibhav Jayant Raut"]
[WhiteFideId "1226380"]
[BlackFideId "5089034"]
[WhiteElo "2700"]
[BlackElo "2237"]
[Result "1/2-1/2"]
[Round "06"]
[TimeControl "180+2"]
[Date "2022.12.27"]
[WhiteClock "0:00:09"]
[BlackClock "0:00:06"]

1. b3 {[%clk 0:03:00]}  Nf6 {[%clk 0:02:59]} 2. Bb2 {[%clk 0:03:01]}  g6 {[%clk 0:03:00]} 3. Nf3 {[%clk 0:03:01]}  Bg7 {[%clk 0:03:00]} 4. g3 {[%clk 0:03:02]}  O-O {[%clk 0:03:01]} 5. Bg2 {[%clk 0:03:02]}  d6 {[%clk 0:03:01]} 6. d4 {[%clk 0:03:03]}  a5 {[%clk 0:02:58]} 7. O-O {[%clk 0:03:02]}  Nbd7 {[%clk 0:02:56]} 8. c4 {[%clk 0:03:02]}  e5 {[%clk 0:02:56]} 9. dxe5 {[%clk 0:03:02]}  Ng4 {[%clk 0:02:54]} 10. Nc3 {[%clk 0:03:02]}  Ngxe5 {[%clk 0:02:52]} 11. Qc2 {[%clk 0:03:01]}  Nxf3+ {[%clk 0:02:51]} 12. Bxf3 {[%clk 0:03:02]}  Nc5 {[%clk 0:02:51]} 13. Rfd1 {[%clk 0:02:59]}  Bf5 {[%clk 0:02:47]} 14. Qc1 {[%clk 0:02:51]}  Re8 {[%clk 0:02:39]} 15. Nd5 {[%clk 0:02:49]}  c6 {[%clk 0:02:38]} 16. Bxg7 {[%clk 0:02:47]}  Kxg7 {[%clk 0:02:39]} 17. Qb2+ {[%clk 0:02:47]}  f6 {[%clk 0:02:39]} 18. Nc3 {[%clk 0:02:44]}  Qe7 {[%clk 0:02:35]} 19. a3 {[%clk 0:02:42]}  Rad8 {[%clk 0:02:31]} 20. Rd4 {[%clk 0:02:23]}  Ne6 {[%clk 0:02:27]} 21. Rd2 {[%clk 0:02:22]}  Ng5 {[%clk 0:02:25]} 22. Bg2 {[%clk 0:02:23]}  Ne4 {[%clk 0:02:22]} 23. Bxe4 {[%clk 0:02:23]}  Bxe4 {[%clk 0:02:23]} 24. Rad1 {[%clk 0:02:23]}  Bf5 {[%clk 0:02:21]} 25. b4 {[%clk 0:02:23]}  axb4 {[%clk 0:02:21]} 26. Qxb4 {[%clk 0:02:20]}  c5 {[%clk 0:01:50]} 27. Qb6 {[%clk 0:02:19]}  Be6 {[%clk 0:01:50]} 28. Rxd6 {[%clk 0:01:54]}  Rxd6 {[%clk 0:01:47]} 29. Rxd6 {[%clk 0:01:55]}  Bxc4 {[%clk 0:01:47]} 30. Qxc5 {[%clk 0:01:55]}  Bxe2 {[%clk 0:01:42]} 31. Qd4 {[%clk 0:01:55]}  Bg4 {[%clk 0:01:33]} 32. Kg2 {[%clk 0:01:53]}  h5 {[%clk 0:01:25]} 33. h3 {[%clk 0:01:51]}  Bf5 {[%clk 0:01:23]} 34. a4 {[%clk 0:01:39]}  Qe5 {[%clk 0:01:15]} 35. Qb4 {[%clk 0:01:35]}  Re7 {[%clk 0:01:07]} 36. Rd4 {[%clk 0:01:31]}  Bd7 {[%clk 0:00:55]} 37. Rd1 {[%clk 0:00:48]}  Bc6+ {[%clk 0:00:51]} 38. Kh2 {[%clk 0:00:49]}  h4 {[%clk 0:00:45]} 39. Qd4 {[%clk 0:00:37]}  hxg3+ {[%clk 0:00:37]} 40. fxg3 {[%clk 0:00:38]}  Qf5 {[%clk 0:00:30]} 41. Qf4 {[%clk 0:00:25]}  Qxf4 {[%clk 0:00:19]} 42. gxf4 {[%clk 0:00:25]}  Re3 {[%clk 0:00:19]} 43. Nb5 {[%clk 0:00:23]}  Rf3 {[%clk 0:00:15]} 44. Nd4 {[%clk 0:00:23]}  Rxf4 {[%clk 0:00:15]} 45. Nxc6 {[%clk 0:00:22]}  bxc6 {[%clk 0:00:16]} 46. Ra1 {[%clk 0:00:22]}  Rb4 {[%clk 0:00:14]} 47. a5 {[%clk 0:00:22]}  Rb8 {[%clk 0:00:15]} 48. a6 {[%clk 0:00:22]}  Ra8 {[%clk 0:00:15]} 49. a7 {[%clk 0:00:22]}  c5 {[%clk 0:00:14]} 50. Kg2 {[%clk 0:00:21]}  Kh6 {[%clk 0:00:14]} 51. Ra4 {[%clk 0:00:20]}  Kg5 {[%clk 0:00:14]} 52. Kf3 {[%clk 0:00:19]}  Kf5 {[%clk 0:00:15]} 53. h4 {[%clk 0:00:16]}  Ke5 {[%clk 0:00:14]} 54. Ra6 {[%clk 0:00:14]}  c4 {[%clk 0:00:13]} 55. Ke3 {[%clk 0:00:14]}  g5 {[%clk 0:00:11]} 56. h5 {[%clk 0:00:14]}  g4 {[%clk 0:00:10]} 57. h6 {[%clk 0:00:14]}  g3 {[%clk 0:00:06]} 58. h7 {[%clk 0:00:14]}  g2 {[%clk 0:00:05]} 59. Kf2 {[%clk 0:00:14]}  c3 {[%clk 0:00:03]} 60. h8=Q {[%clk 0:00:13]}  Rxh8 {[%clk 0:00:02]} 61. a8=Q {[%clk 0:00:13]}  Rxa8 {[%clk 0:00:02]} 62. Rxa8 {[%clk 0:00:13]}  Ke4 {[%clk 0:00:02]} 63. Kxg2 {[%clk 0:00:06]}  c2 {[%clk 0:00:01]} 64. Rc8 {[%clk 0:00:05]}  Kd3 {[%clk 0:00:02]} 65. Kf2 {[%clk 0:00:05]}  Kd2 {[%clk 0:00:02]} 66. Rd8+ {[%clk 0:00:05]}  Kc3 {[%clk 0:00:03]} 67. Rc8+ {[%clk 0:00:05]}  Kb2 {[%clk 0:00:03]} 68. Ke2 {[%clk 0:00:04]}  c1=Q {[%clk 0:00:03]} 69. Rxc1 {[%clk 0:00:05]}  Kxc1 {[%clk 0:00:04]} 70. Kf3 {[%clk 0:00:06]}  Kc2 {[%clk 0:00:04]} 71. Kf4 {[%clk 0:00:07]}  Kc3 {[%clk 0:00:05]} 72. Kf5 {[%clk 0:00:08]}  Kc4 {[%clk 0:00:06]} 73. Kxf6 {[%clk 0:00:09]} 1/2-1/2


[Site "https://www.chess.com"]

[Event "Titled Tuesday Blitz December 27 Late 2022"]
[White "Denishev, Marat"]
[Black "Garcia Cuenca, Victor"]
[WhiteFideId "24131563"]
[BlackFideId "2250829"]
[WhiteElo "2255"]
[BlackElo "2324"]
[Result "1-0"]
[Round "06"]
[TimeControl "180+2"]
[Date "2022.12.27"]
[WhiteClock "0:00:35"]
[BlackClock "0:00:02"]

1. Nf3 {[%clk 0:03:00]}  Nf6 {[%clk 0:02:59]} 2. c4 {[%clk 0:03:00]}  c5 {[%clk 0:02:58]} 3. Nc3 {[%clk 0:03:00]}  g6 {[%clk 0:02:57]} 4. d4 {[%clk 0:03:00]}  cxd4 {[%clk 0:02:57]} 5. Nxd4 {[%clk 0:03:01]}  Bg7 {[%clk 0:02:57]} 6. e4 {[%clk 0:03:01]}  d6 {[%clk 0:02:55]} 7. f3 {[%clk 0:03:01]}  O-O {[%clk 0:02:55]} 8. Be3 {[%clk 0:03:01]}  Nc6 {[%clk 0:02:54]} 9. Be2 {[%clk 0:03:01]}  Nxd4 {[%clk 0:02:53]} 10. Bxd4 {[%clk 0:03:02]}  Be6 {[%clk 0:02:52]} 11. O-O {[%clk 0:03:01]}  a6 {[%clk 0:02:52]} 12. Rc1 {[%clk 0:03:00]}  Rc8 {[%clk 0:02:53]} 13. b3 {[%clk 0:02:59]}  Qa5 {[%clk 0:02:51]} 14. Qd2 {[%clk 0:02:56]}  b5 {[%clk 0:02:45]} 15. Rfd1 {[%clk 0:02:47]}  bxc4 {[%clk 0:02:33]} 16. Nd5 {[%clk 0:02:46]}  Qxd2 {[%clk 0:02:06]} 17. Nxe7+ {[%clk 0:02:44]}  Kh8 {[%clk 0:02:06]} 18. Rxd2 {[%clk 0:02:45]}  Rce8 {[%clk 0:01:58]} 19. Nd5 {[%clk 0:02:33]}  Bxd5 {[%clk 0:01:49]} 20. exd5 {[%clk 0:02:24]}  cxb3 {[%clk 0:01:49]} 21. axb3 {[%clk 0:02:24]}  Nxd5 {[%clk 0:01:28]} 22. Bxa6 {[%clk 0:02:20]}  Nb4 {[%clk 0:01:15]} 23. Bc4 {[%clk 0:02:11]}  d5 {[%clk 0:00:54]} 24. Bxg7+ {[%clk 0:01:56]}  Kxg7 {[%clk 0:00:53]} 25. Bxd5 {[%clk 0:01:57]}  Rd8 {[%clk 0:00:49]} 26. Rcd1 {[%clk 0:01:56]}  Nxd5 {[%clk 0:00:40]} 27. Rxd5 {[%clk 0:01:57]}  Rb8 {[%clk 0:00:40]} 28. R1d3 {[%clk 0:01:56]}  Rfc8 {[%clk 0:00:34]} 29. Re3 {[%clk 0:01:30]}  Rc1+ {[%clk 0:00:32]} 30. Kf2 {[%clk 0:01:30]}  Rc2+ {[%clk 0:00:26]} 31. Kg3 {[%clk 0:01:28]}  Rb2 {[%clk 0:00:25]} 32. Rdd3 {[%clk 0:01:26]}  Kf6 {[%clk 0:00:21]} 33. Rc3 {[%clk 0:01:26]}  Kg7 {[%clk 0:00:20]} 34. Red3 {[%clk 0:01:24]}  Kf6 {[%clk 0:00:18]} 35. h4 {[%clk 0:01:23]}  h5 {[%clk 0:00:17]} 36. Kh3 {[%clk 0:01:12]}  Kg7 {[%clk 0:00:17]} 37. g3 {[%clk 0:01:04]}  Ra8 {[%clk 0:00:17]} 38. Rc7 {[%clk 0:00:58]}  Ra1 {[%clk 0:00:15]} 39. g4 {[%clk 0:00:58]}  Rh1+ {[%clk 0:00:12]} 40. Kg3 {[%clk 0:00:58]}  Rg1+ {[%clk 0:00:12]} 41. Kf4 {[%clk 0:00:57]}  hxg4 {[%clk 0:00:09]} 42. Rdd7 {[%clk 0:00:53]}  Rxb3 {[%clk 0:00:04]} 43. Rxf7+ {[%clk 0:00:53]}  Kg8 {[%clk 0:00:04]} 44. Rg7+ {[%clk 0:00:44]}  Kf8 {[%clk 0:00:04]} 45. Rcf7+ {[%clk 0:00:42]}  Ke8 {[%clk 0:00:04]} 46. Ra7 {[%clk 0:00:40]}  Rxf3+ {[%clk 0:00:03]} 47. Kg5 {[%clk 0:00:41]}  Kf8 {[%clk 0:00:02]} 48. Kh6 {[%clk 0:00:35]} 1-0


[Site "https://www.chess.com"]

[Event "Titled Tuesday Blitz December 27 Late 2022"]
[White "Djokic, Mihailo"]
[Black "Bambino Filho, Antonio Carlos"]
[WhiteFideId "976440"]
[BlackFideId "2113163"]
[WhiteElo "2192"]
[BlackElo "2144"]
[Result "1-0"]
[Round "06"]
[TimeControl "180+2"]
[Date "2022.12.27"]
[WhiteClock "0:00:49"]
[BlackClock "0:00:16"]

1. e4 {[%clk 0:03:00]}  c5 {[%clk 0:02:59]} 2. Nf3 {[%clk 0:03:00]}  d6 {[%clk 0:03:00]} 3. d4 {[%clk 0:03:01]}  cxd4 {[%clk 0:03:01]} 4. Nxd4 {[%clk 0:03:01]}  Nf6 {[%clk 0:03:01]} 5. Nc3 {[%clk 0:03:01]}  a6 {[%clk 0:03:02]} 6. Rg1 {[%clk 0:03:01]}  e6 {[%clk 0:02:58]} 7. g4 {[%clk 0:03:01]}  Be7 {[%clk 0:02:58]} 8. g5 {[%clk 0:03:02]}  Nfd7 {[%clk 0:02:59]} 9. Qh5 {[%clk 0:02:59]}  g6 {[%clk 0:02:56]} 10. Qe2 {[%clk 0:02:58]}  Nc6 {[%clk 0:02:55]} 11. Be3 {[%clk 0:02:58]}  Qc7 {[%clk 0:02:47]} 12. O-O-O {[%clk 0:02:57]}  b5 {[%clk 0:02:44]} 13. Nxc6 {[%clk 0:02:56]}  Qxc6 {[%clk 0:02:44]} 14. Bd4 {[%clk 0:02:53]}  Rg8 {[%clk 0:02:30]} 15. Kb1 {[%clk 0:02:47]}  Bb7 {[%clk 0:02:30]} 16. Bg2 {[%clk 0:02:45]}  Nb6 {[%clk 0:02:09]} 17. Rge1 {[%clk 0:02:22]}  O-O-O {[%clk 0:02:06]} 18. Nd5 {[%clk 0:02:11]}  exd5 {[%clk 0:01:51]} 19. exd5 {[%clk 0:02:09]}  Nxd5 {[%clk 0:01:47]} 20. Bxd5 {[%clk 0:02:06]}  Qxd5 {[%clk 0:01:47]} 21. Qxe7 {[%clk 0:02:00]}  Rd7 {[%clk 0:01:33]} 22. Qf6 {[%clk 0:01:44]}  Qf5 {[%clk 0:01:25]} 23. Qxf5 {[%clk 0:01:40]}  gxf5 {[%clk 0:01:26]} 24. Bf6 {[%clk 0:01:41]}  Kb8 {[%clk 0:01:17]} 25. Re7 {[%clk 0:01:35]}  Rxe7 {[%clk 0:01:14]} 26. Bxe7 {[%clk 0:01:35]}  d5 {[%clk 0:01:14]} 27. Bf6 {[%clk 0:01:24]}  Re8 {[%clk 0:01:12]} 28. b3 {[%clk 0:01:21]}  Re2 {[%clk 0:01:11]} 29. Bd4 {[%clk 0:01:20]}  Kc8 {[%clk 0:01:05]} 30. Rd3 {[%clk 0:01:20]}  Re4 {[%clk 0:01:00]} 31. c3 {[%clk 0:01:17]}  Rh4 {[%clk 0:00:58]} 32. Rf3 {[%clk 0:01:15]}  f4 {[%clk 0:00:45]} 33. h3 {[%clk 0:01:11]}  Kd7 {[%clk 0:00:44]} 34. Rd3 {[%clk 0:01:08]}  Ke6 {[%clk 0:00:42]} 35. Bf6 {[%clk 0:01:09]}  Rh5 {[%clk 0:00:38]} 36. Kb2 {[%clk 0:01:06]}  Kd6 {[%clk 0:00:32]} 37. Rd4 {[%clk 0:01:05]}  Bc8 {[%clk 0:00:32]} 38. Rxf4 {[%clk 0:01:03]}  Rxh3 {[%clk 0:00:31]} 39. Bd4 {[%clk 0:01:02]}  Be6 {[%clk 0:00:31]} 40. Rf6 {[%clk 0:00:58]}  Rh2 {[%clk 0:00:27]} 41. Ka3 {[%clk 0:00:58]}  Rg2 {[%clk 0:00:27]} 42. f4 {[%clk 0:00:58]}  a5 {[%clk 0:00:24]} 43. f5 {[%clk 0:00:57]}  Rxg5 {[%clk 0:00:21]} 44. fxe6 {[%clk 0:00:56]}  fxe6 {[%clk 0:00:22]} 45. Rh6 {[%clk 0:00:55]}  Rg4 {[%clk 0:00:19]} 46. Rxh7 {[%clk 0:00:50]}  a4 {[%clk 0:00:19]} 47. bxa4 {[%clk 0:00:50]}  bxa4 {[%clk 0:00:18]} 48. Ra7 {[%clk 0:00:48]}  e5 {[%clk 0:00:17]} 49. Ra6+ {[%clk 0:00:48]}  Kd7 {[%clk 0:00:16]} 50. Bxe5 {[%clk 0:00:49]} 1-0


[Site "https://www.chess.com"]